[Event "Early-Titled-Tuesday-Blitz-February-20-2024"]
[Site "Chess.com"]
[Date "2024.02.20"]
[Round "5"]
[White "Ariadna_Atreides"]
[Black "rquery98"]
[Result "0-1"]
[WhiteElo "2194"]
[BlackElo "2766"]
[TimeControl "180+1"]
[EndTime "8:56:24 PST"]
[Termination "rquery98 won on time"]

1. d4 {[%clk 0:03:00.9]} 1... d5 {[%clk 0:02:58.9]} 2. Nf3 {[%clk 0:03:01.4]}
2... Nf6 {[%clk 0:02:58.8]} 3. e3 {[%clk 0:03:01.8]} 3... e6 {[%clk 0:02:58.4]}
4. Bd3 {[%clk 0:03:02.2]} 4... c5 {[%clk 0:02:58.8]} 5. b3 {[%clk 0:03:02.1]}
5... Nc6 {[%clk 0:02:57.3]} 6. O-O {[%clk 0:03:01.1]} 6... cxd4 {[%clk 0:02:57]}
7. exd4 {[%clk 0:03:02]} 7... Bd6 {[%clk 0:02:51.9]} 8. Re1 {[%clk 0:02:50.9]}
8... O-O {[%clk 0:02:50.5]} 9. a3 {[%clk 0:02:49.5]} 9... Re8 {[%clk 0:02:46]}
10. Bb2 {[%clk 0:02:44]} 10... Bf8 {[%clk 0:02:46.1]} 11. Nbd2 {[%clk
0:02:42.6]} 11... g6 {[%clk 0:02:40.7]} 12. Qe2 {[%clk 0:02:32.6]} 12... Bg7
{[%clk 0:02:40.8]} 13. Ne5 {[%clk 0:02:26.5]} 13... Nxe5 {[%clk 0:02:36.6]} 14.
dxe5 {[%clk 0:02:23.5]} 14... Nd7 {[%clk 0:02:36.4]} 15. f4 {[%clk 0:02:18.6]}
15... Nc5 {[%clk 0:02:33.1]} 16. Nf3 {[%clk 0:02:14.4]} 16... Bd7 {[%clk
0:02:25.1]} 17. Nd4 {[%clk 0:02:09.5]} 17... Rc8 {[%clk 0:02:10.2]} 18. Rac1
{[%clk 0:01:57.6]} 18... Qb6 {[%clk 0:01:45.4]} 19. Ba1 {[%clk 0:01:52.9]} 19...
f6 {[%clk 0:01:38.6]} 20. Kh1 {[%clk 0:01:45.5]} 20... fxe5 {[%clk 0:01:33.9]}
21. fxe5 {[%clk 0:01:46.4]} 21... a6 {[%clk 0:01:26.2]} 22. Nf3 {[%clk
0:01:34.9]} 22... Nxd3 {[%clk 0:01:22.7]} 23. Qxd3 {[%clk 0:01:35.1]} 23... Bh6
{[%clk 0:01:21.9]} 24. Rcd1 {[%clk 0:01:29.6]} 24... Qb5 {[%clk 0:01:18.7]} 25.
c4 {[%clk 0:01:23.7]} 25... Qc5 {[%clk 0:01:17.5]} 26. cxd5 {[%clk 0:01:22]}
26... Qxd5 {[%clk 0:01:17.7]} 27. Qxd5 {[%clk 0:01:20]} 27... exd5 {[%clk
0:01:18.6]} 28. Rxd5 {[%clk 0:01:19]} 28... Be6 {[%clk 0:01:16.6]} 29. Rd3
{[%clk 0:01:15.8]} 29... Red8 {[%clk 0:01:09]} 30. Nd4 {[%clk 0:01:06]} 30...
Rc1 {[%clk 0:01:02.5]} 31. Rxc1 {[%clk 0:01:03.7]} 31... Bxc1 {[%clk 0:01:03.4]}
32. h3 {[%clk 0:00:57.7]} 32... Bxa3 {[%clk 0:00:59.7]} 33. Rf3 {[%clk
0:00:53.4]} 33... Bd5 {[%clk 0:00:57.2]} 34. Rf1 {[%clk 0:00:51.2]} 34... Bc5
{[%clk 0:00:54.8]} 35. Re1 {[%clk 0:00:08.5]} 35... Rf8 {[%clk 0:00:48.8]} 36.
Nf3 {[%clk 0:00:06.3]} 36... Bxb3 {[%clk 0:00:43.5]} 37. e6 {[%clk 0:00:05.8]}
37... Re8 {[%clk 0:00:42.8]} 38. Ng5 {[%clk 0:00:05.3]} 38... h6 {[%clk
0:00:38.5]} 39. Nf7 {[%clk 0:00:05.3]} 39... Rxe6 {[%clk 0:00:35.7]} 40. Nxh6+
{[%clk 0:00:03.6]} 40... Kh7 {[%clk 0:00:35.8]} 41. Rxe6 {[%clk 0:00:03]} 41...
Bxe6 {[%clk 0:00:36.7]} 42. Ng4 {[%clk 0:00:03.4]} 42... Bxg4 {[%clk 0:00:35.1]}
43. hxg4 {[%clk 0:00:04.3]} 43... g5 {[%clk 0:00:35.6]} 44. Kh2 {[%clk
0:00:02.3]} 44... Bd6+ {[%clk 0:00:33.6]} 45. g3 {[%clk 0:00:02.1]} 45... Kg6
{[%clk 0:00:33.9]} 46. Kg2 {[%clk 0:00:02.6]} 46... Be7 {[%clk 0:00:34.5]} 47.
Kf3 {[%clk 0:00:02.5]} 47... Bf6 {[%clk 0:00:35.2]} 0-1

[Event "Early-Titled-Tuesday-Blitz-February-20-2024"]
[Site "Chess.com"]
[Date "2024.02.20"]
[Round "5"]
[White "Maxfan2008"]
[Black "TitarovVasiliYouTube"]
[Result "1-0"]
[WhiteElo "2567"]
[BlackElo "2522"]
[TimeControl "180+1"]
[EndTime "8:56:27 PST"]
[Termination "Maxfan2008 won on time"]

1. d4 {[%clk 0:02:54.1]} 1... d5 {[%clk 0:02:57.2]} 2. c4 {[%clk 0:02:52.4]}
2... e6 {[%clk 0:02:56.2]} 3. Nc3 {[%clk 0:02:51.9]} 3... a6 {[%clk 0:02:56.3]}
4. cxd5 {[%clk 0:02:49.3]} 4... exd5 {[%clk 0:02:57.2]} 5. Bf4 {[%clk
0:02:49.4]} 5... Nf6 {[%clk 0:02:57.2]} 6. e3 {[%clk 0:02:48.3]} 6... Bd6 {[%clk
0:02:57.5]} 7. Bxd6 {[%clk 0:02:43.3]} 7... Qxd6 {[%clk 0:02:58.4]} 8. Bd3
{[%clk 0:02:43.8]} 8... O-O {[%clk 0:02:58.6]} 9. Nf3 {[%clk 0:02:43.9]} 9...
Bg4 {[%clk 0:02:58.7]} 10. h3 {[%clk 0:02:43.7]} 10... Bxf3 {[%clk 0:02:56]} 11.
Qxf3 {[%clk 0:02:43.7]} 11... Nbd7 {[%clk 0:02:55.6]} 12. O-O {[%clk 0:02:43]}
12... Rfe8 {[%clk 0:02:52.2]} 13. Rab1 {[%clk 0:02:42.4]} 13... c6 {[%clk
0:02:52.4]} 14. b4 {[%clk 0:02:40.1]} 14... Nb6 {[%clk 0:02:52.6]} 15. Rfc1
{[%clk 0:02:38.1]} 15... g6 {[%clk 0:02:47.1]} 16. a4 {[%clk 0:02:36.9]} 16...
Kg7 {[%clk 0:02:46]} 17. b5 {[%clk 0:02:31.4]} 17... cxb5 {[%clk 0:02:46.9]} 18.
axb5 {[%clk 0:02:31.3]} 18... a5 {[%clk 0:02:47.6]} 19. Rc2 {[%clk 0:01:43.1]}
19... Rec8 {[%clk 0:02:40.8]} 20. Rbc1 {[%clk 0:01:42.7]} 20... a4 {[%clk
0:02:33.2]} 21. Na2 {[%clk 0:01:41.7]} 21... Rxc2 {[%clk 0:02:17.1]} 22. Rxc2
{[%clk 0:01:42.6]} 22... Qa3 {[%clk 0:02:13.7]} 23. Bf1 {[%clk 0:01:28.9]} 23...
Qb3 {[%clk 0:02:03.6]} 24. Re2 {[%clk 0:01:04.3]} 24... a3 {[%clk 0:01:57.1]}
25. g4 {[%clk 0:01:02.6]} 25... h6 {[%clk 0:01:52.4]} 26. h4 {[%clk 0:01:00.3]}
26... Ne4 {[%clk 0:01:20]} 27. Qf4 {[%clk 0:00:56.3]} 27... Nc3 {[%clk 0:00:34]}
28. Qe5+ {[%clk 0:00:56.1]} 28... Kh7 {[%clk 0:00:33.5]} 29. Re1 {[%clk
0:00:30.4]} 29... Qxa2 {[%clk 0:00:19]} 30. Qc7 {[%clk 0:00:29.9]} 30... Kg7
{[%clk 0:00:15.5]} 31. Qxc3 {[%clk 0:00:28.8]} 31... Qb2 {[%clk 0:00:14]} 32.
Qc7 {[%clk 0:00:12.9]} 32... a2 {[%clk 0:00:13.9]} 33. Qe5+ {[%clk 0:00:10.5]}
33... Kg8 {[%clk 0:00:11.7]} 34. g5 {[%clk 0:00:10.6]} 34... hxg5 {[%clk
0:00:09.6]} 35. h5 {[%clk 0:00:08.7]} 35... Nd7 {[%clk 0:00:02]} 36. Qxg5 {[%clk
0:00:07.1]} 36... a1=Q {[%clk 0:00:01.5]} 37. hxg6 {[%clk 0:00:07.1]} 1-0

[Event "Early-Titled-Tuesday-Blitz-February-20-2024"]
[Site "Chess.com"]
[Date "2024.02.20"]
[Round "5"]
[White "Pingah9"]
[Black "Louis-Paulsen-Fan"]
[Result "1-0"]
[WhiteElo "2534"]
[BlackElo "2221"]
[TimeControl "180+1"]
[EndTime "8:56:27 PST"]
[Termination "Pingah9 won on time"]

1. e4 {[%clk 0:03:00.9]} 1... Nf6 {[%clk 0:02:59.6]} 2. e5 {[%clk 0:03:00.8]}
2... Nd5 {[%clk 0:02:59.9]} 3. c4 {[%clk 0:03:01.2]} 3... Nb6 {[%clk 0:02:59.6]}
4. d4 {[%clk 0:03:01.9]} 4... d6 {[%clk 0:02:59.8]} 5. f4 {[%clk 0:03:02.3]}
5... dxe5 {[%clk 0:03:00.1]} 6. fxe5 {[%clk 0:03:03.2]} 6... c5 {[%clk
0:03:00.5]} 7. d5 {[%clk 0:03:03.3]} 7... e6 {[%clk 0:03:01]} 8. Nc3 {[%clk
0:03:02.1]} 8... exd5 {[%clk 0:03:01.3]} 9. cxd5 {[%clk 0:03:03]} 9... Qh4+
{[%clk 0:03:01.6]} 10. g3 {[%clk 0:03:00.6]} 10... Qd4 {[%clk 0:03:02.2]} 11.
Bb5+ {[%clk 0:02:47.9]} 11... Bd7 {[%clk 0:02:58.8]} 12. Bxd7+ {[%clk
0:02:43.3]} 12... N8xd7 {[%clk 0:02:56.2]} 13. Nf3 {[%clk 0:02:41.1]} 13...
Qxd1+ {[%clk 0:02:52.6]} 14. Kxd1 {[%clk 0:02:42]} 14... h6 {[%clk 0:02:23.6]}
15. Kc2 {[%clk 0:02:39.5]} 15... O-O-O {[%clk 0:02:09.8]} 16. h4 {[%clk
0:02:35.4]} 16... Re8 {[%clk 0:01:46.4]} 17. Bf4 {[%clk 0:02:32.6]} 17... Be7
{[%clk 0:01:35.1]} 18. h5 {[%clk 0:02:29.5]} 18... c4 {[%clk 0:01:26.5]} 19.
Rhe1 {[%clk 0:02:08.3]} 19... Nc5 {[%clk 0:01:23.1]} 20. Rad1 {[%clk 0:01:45.6]}
20... Bg5 {[%clk 0:01:15.8]} 21. Rd4 {[%clk 0:01:34]} 21... f6 {[%clk
0:01:05.7]} 22. e6 {[%clk 0:01:28.6]} 22... Bxf4 {[%clk 0:01:01.8]} 23. gxf4
{[%clk 0:01:26.1]} 23... Nd3 {[%clk 0:01:00.2]} 24. Rg1 {[%clk 0:01:24.2]} 24...
Rhg8 {[%clk 0:00:54.6]} 25. b3 {[%clk 0:01:21.1]} 25... Nb4+ {[%clk 0:00:50.9]}
26. Kb2 {[%clk 0:01:19.8]} 26... Nd3+ {[%clk 0:00:46.7]} 27. Ka3 {[%clk
0:01:19.2]} 27... Rd8 {[%clk 0:00:21.4]} 28. bxc4 {[%clk 0:01:16.6]} 28... Nc5
{[%clk 0:00:21.7]} 29. f5 {[%clk 0:01:05.8]} 29... Kb8 {[%clk 0:00:19.9]} 30.
Rdg4 {[%clk 0:01:00.3]} 30... Nc8 {[%clk 0:00:14.8]} 31. Rxg7 {[%clk 0:00:56.2]}
31... Rxg7 {[%clk 0:00:15.4]} 32. Rxg7 {[%clk 0:00:56.5]} 32... Nd6 {[%clk
0:00:16.1]} 33. Nd2 {[%clk 0:00:53]} 33... Nxf5 {[%clk 0:00:15.5]} 34. Rg6
{[%clk 0:00:52.3]} 34... Nd6 {[%clk 0:00:10.6]} 35. Rxf6 {[%clk 0:00:50]} 35...
Rg8 {[%clk 0:00:09]} 36. e7 {[%clk 0:00:49]} 36... Kc7 {[%clk 0:00:07.6]} 37.
Rf8 {[%clk 0:00:44.7]} 37... Rg3 {[%clk 0:00:04.5]} 38. Nf3 {[%clk 0:00:43.6]}
38... Kd7 {[%clk 0:00:02.5]} 39. Ne5+ {[%clk 0:00:24.4]} 39... Kxe7 {[%clk
0:00:02.6]} 40. Rf3 {[%clk 0:00:20.2]} 40... Rxf3 {[%clk 0:00:02.5]} 41. Nxf3
{[%clk 0:00:19.9]} 41... Nxc4+ {[%clk 0:00:03.4]} 42. Kb4 {[%clk 0:00:20.3]}
42... Nd6 {[%clk 0:00:02.6]} 43. Kxc5 {[%clk 0:00:20.1]} 43... Nf5 {[%clk
0:00:02.2]} 44. Ne4 {[%clk 0:00:19.2]} 44... b6+ {[%clk 0:00:02.2]} 45. Kc6
{[%clk 0:00:19.1]} 45... Ng7 {[%clk 0:00:01.9]} 46. d6+ {[%clk 0:00:19.1]} 46...
Kd8 {[%clk 0:00:02.3]} 47. Ne5 {[%clk 0:00:19.1]} 1-0

[Event "Early-Titled-Tuesday-Blitz-February-20-2024"]
[Site "Chess.com"]
[Date "2024.02.20"]
[Round "5"]
[White "GrotBchess"]
[Black "ZachHKL"]
[Result "1/2-1/2"]
[WhiteElo "2355"]
[BlackElo "2116"]
[TimeControl "180+1"]
[EndTime "8:56:30 PST"]
[Termination "Game drawn by repetition"]

1. d4 {[%clk 0:03:00.9]} 1... Nf6 {[%clk 0:02:57.4]} 2. c4 {[%clk 0:03:00.7]}
2... e6 {[%clk 0:02:58]} 3. Nf3 {[%clk 0:03:00.7]} 3... Bb4+ {[%clk 0:02:58.5]}
4. Bd2 {[%clk 0:03:00.4]} 4... Qe7 {[%clk 0:02:59.2]} 5. g3 {[%clk 0:03:00.6]}
5... O-O {[%clk 0:02:58.5]} 6. Bg2 {[%clk 0:03:00.7]} 6... a5 {[%clk 0:02:59]}
7. Nc3 {[%clk 0:03:00.6]} 7... d6 {[%clk 0:02:59.1]} 8. O-O {[%clk 0:03:01]}
8... Nbd7 {[%clk 0:02:58.2]} 9. Qc2 {[%clk 0:03:00.7]} 9... Re8 {[%clk
0:02:57.4]} 10. a3 {[%clk 0:02:59.6]} 10... Bxc3 {[%clk 0:02:57]} 11. Bxc3
{[%clk 0:03:00.5]} 11... a4 {[%clk 0:02:54.4]} 12. Rad1 {[%clk 0:02:55.6]} 12...
e5 {[%clk 0:02:54]} 13. dxe5 {[%clk 0:02:54.4]} 13... dxe5 {[%clk 0:02:51.1]}
14. h4 {[%clk 0:02:51.5]} 14... h6 {[%clk 0:02:45.4]} 15. Nd2 {[%clk 0:02:48.4]}
15... c5 {[%clk 0:02:30.9]} 16. e3 {[%clk 0:02:37.5]} 16... Nb8 {[%clk
0:02:24.3]} 17. Ne4 {[%clk 0:02:30.8]} 17... Nc6 {[%clk 0:02:19.9]} 18. Rd2
{[%clk 0:02:24.3]} 18... Nxe4 {[%clk 0:02:18.8]} 19. Bxe4 {[%clk 0:02:23.5]}
19... f6 {[%clk 0:02:12.1]} 20. Rfd1 {[%clk 0:02:19.1]} 20... Be6 {[%clk
0:02:10.4]} 21. Rd5 {[%clk 0:01:57.6]} 21... Rec8 {[%clk 0:01:34.9]} 22. Bf5
{[%clk 0:01:48]} 22... Nd4 {[%clk 0:01:19.6]} 23. exd4 {[%clk 0:01:33.3]} 23...
Bxd5 {[%clk 0:01:09.6]} 24. Bxc8 {[%clk 0:01:28.9]} 24... Bxc4 {[%clk 0:00:49]}
25. Bf5 {[%clk 0:01:16.4]} 25... Bb3 {[%clk 0:00:46.7]} 26. Qd2 {[%clk
0:01:05.6]} 26... Bxd1 {[%clk 0:00:40.2]} 27. Qxd1 {[%clk 0:01:04.9]} 27... exd4
{[%clk 0:00:37.1]} 28. Bd2 {[%clk 0:01:02.6]} 28... Qe5 {[%clk 0:00:33.1]} 29.
Bd3 {[%clk 0:00:59.7]} 29... b6 {[%clk 0:00:30.1]} 30. Bf4 {[%clk 0:00:54.9]}
30... Qe6 {[%clk 0:00:23.9]} 31. Qc1 {[%clk 0:00:48.8]} 31... Kf8 {[%clk
0:00:18.1]} 32. Bc4 {[%clk 0:00:40]} 32... Qe4 {[%clk 0:00:16.8]} 33. h5 {[%clk
0:00:30.4]} 33... Rd8 {[%clk 0:00:15.6]} 34. Qd2 {[%clk 0:00:28.1]} 34... d3
{[%clk 0:00:15.2]} 35. Bb5 {[%clk 0:00:25.5]} 35... Qf3 {[%clk 0:00:11.8]} 36.
Be3 {[%clk 0:00:23]} 36... Qe4 {[%clk 0:00:11.2]} 37. Qc3 {[%clk 0:00:18.4]}
37... c4 {[%clk 0:00:10]} 38. Bxc4 {[%clk 0:00:17.4]} 38... d2 {[%clk
0:00:09.8]} 39. Bxd2 {[%clk 0:00:17.3]} 39... Rxd2 {[%clk 0:00:09.9]} 40. Qxd2
{[%clk 0:00:17.5]} 40... Qxc4 {[%clk 0:00:10.2]} 41. Qd8+ {[%clk 0:00:18.1]}
41... Kf7 {[%clk 0:00:10]} 42. Qxb6 {[%clk 0:00:18.1]} 42... Qc1+ {[%clk
0:00:09.9]} 43. Kg2 {[%clk 0:00:18]} 43... Qc2 {[%clk 0:00:08.6]} 44. Qb7+
{[%clk 0:00:17.3]} 44... Kg8 {[%clk 0:00:08.7]} 45. Qa8+ {[%clk 0:00:16.1]}
45... Kh7 {[%clk 0:00:08.9]} 46. Qb7 {[%clk 0:00:15.4]} 46... Kg8 {[%clk
0:00:07.6]} 47. Kg1 {[%clk 0:00:12.9]} 47... Qd1+ {[%clk 0:00:07.1]} 48. Kg2
{[%clk 0:00:12.7]} 48... Qc2 {[%clk 0:00:04.7]} 1/2-1/2

[Event "Early-Titled-Tuesday-Blitz-February-20-2024"]
[Site "Chess.com"]
[Date "2024.02.20"]
[Round "5"]
[White "FairChess_on_YouTube"]
[Black "Genghis_K"]
[Result "1/2-1/2"]
[WhiteElo "3074"]
[BlackElo "2933"]
[TimeControl "180+1"]
[EndTime "8:56:31 PST"]
[Termination "Game drawn by stalemate"]

1. d4 {[%clk 0:02:59.9]} 1... Nf6 {[%clk 0:03:00.7]} 2. c4 {[%clk 0:02:58.6]}
2... e6 {[%clk 0:03:00.8]} 3. Nf3 {[%clk 0:02:57.1]} 3... d5 {[%clk 0:03:01.2]}
4. Bg5 {[%clk 0:02:57.4]} 4... dxc4 {[%clk 0:03:00.9]} 5. e4 {[%clk 0:02:56.8]}
5... b5 {[%clk 0:02:54.9]} 6. Nc3 {[%clk 0:02:51.7]} 6... a6 {[%clk 0:02:52.2]}
7. a4 {[%clk 0:02:46.4]} 7... b4 {[%clk 0:02:45.7]} 8. Nb1 {[%clk 0:02:38.3]}
8... Bb7 {[%clk 0:02:33.4]} 9. e5 {[%clk 0:02:34.8]} 9... h6 {[%clk 0:02:33.4]}
10. Bh4 {[%clk 0:02:34.9]} 10... g5 {[%clk 0:02:33.3]} 11. Bg3 {[%clk
0:02:34.5]} 11... Nd5 {[%clk 0:02:30.5]} 12. Bxc4 {[%clk 0:02:33.6]} 12... h5
{[%clk 0:02:30.1]} 13. h4 {[%clk 0:02:30.2]} 13... g4 {[%clk 0:02:28.1]} 14. Ng5
{[%clk 0:02:30.3]} 14... Be7 {[%clk 0:02:28.6]} 15. Nd2 {[%clk 0:02:27.9]} 15...
Nb6 {[%clk 0:02:21.6]} 16. Nxe6 {[%clk 0:01:50.1]} 16... fxe6 {[%clk 0:02:06.9]}
17. Bxe6 {[%clk 0:01:51]} 17... Bd5 {[%clk 0:02:04.8]} 18. Bxd5 {[%clk 0:01:42]}
18... Qxd5 {[%clk 0:02:02.5]} 19. a5 {[%clk 0:01:29.3]} 19... Qxg2 {[%clk
0:01:56.1]} 20. Rf1 {[%clk 0:01:04.2]} 20... Nd5 {[%clk 0:01:56.2]} 21. Qc2
{[%clk 0:01:00.8]} 21... Rh6 {[%clk 0:01:55.6]} 22. Ke2 {[%clk 0:00:43.8]} 22...
Nc6 {[%clk 0:01:49.8]} 23. Qc4 {[%clk 0:00:42.8]} 23... O-O-O {[%clk 0:00:56.6]}
24. Rg1 {[%clk 0:00:39.5]} 24... Nf4+ {[%clk 0:00:56.9]} 25. Bxf4 {[%clk
0:00:37.2]} 25... Nxd4+ {[%clk 0:00:57.4]} 26. Qxd4 {[%clk 0:00:32.5]} 26...
Rxd4 {[%clk 0:00:57.7]} 27. Rxg2 {[%clk 0:00:31.2]} 27... Rxf4 {[%clk
0:00:58.4]} 28. f3 {[%clk 0:00:24.7]} 28... Rf5 {[%clk 0:00:40.4]} 29. fxg4
{[%clk 0:00:22.5]} 29... Rxe5+ {[%clk 0:00:40.8]} 30. Kd3 {[%clk 0:00:19.7]}
30... Rd6+ {[%clk 0:00:31.2]} 31. Kc2 {[%clk 0:00:19.3]} 31... Rc5+ {[%clk
0:00:30.3]} 32. Kb3 {[%clk 0:00:18]} 32... Rd3+ {[%clk 0:00:26.5]} 33. Ka4
{[%clk 0:00:17.8]} 33... Rc2 {[%clk 0:00:26.4]} 34. gxh5 {[%clk 0:00:11.1]}
34... Rcxd2 {[%clk 0:00:18.8]} 35. Rg8+ {[%clk 0:00:09.8]} 35... Rd8 {[%clk
0:00:12.6]} 36. Rag1 {[%clk 0:00:10.3]} 36... Rd4 {[%clk 0:00:09.1]} 37. b3
{[%clk 0:00:08.2]} 37... Rxh4 {[%clk 0:00:07.9]} 38. Rxd8+ {[%clk 0:00:06.2]}
38... Bxd8 {[%clk 0:00:08.8]} 39. Rd1 {[%clk 0:00:05.6]} 39... Rxh5 {[%clk
0:00:08]} 40. Rd4 {[%clk 0:00:04.6]} 40... Rb5 {[%clk 0:00:06.6]} 41. Rxd8+
{[%clk 0:00:04]} 41... Kxd8 {[%clk 0:00:02.8]} 1/2-1/2

[Event "Early-Titled-Tuesday-Blitz-February-20-2024"]
[Site "Chess.com"]
[Date "2024.02.20"]
[Round "5"]
[White "koncheto"]
[Black "lluiss"]
[Result "1-0"]
[WhiteElo "2413"]
[BlackElo "2183"]
[TimeControl "180+1"]
[EndTime "8:56:35 PST"]
[Termination "koncheto won on time"]

1. e4 {[%clk 0:03:00.9]} 1... e6 {[%clk 0:02:58.9]} 2. d4 {[%clk 0:03:00.7]}
2... d5 {[%clk 0:02:58.9]} 3. Nd2 {[%clk 0:03:01.4]} 3... Nf6 {[%clk 0:02:57.9]}
4. e5 {[%clk 0:03:01.5]} 4... Nfd7 {[%clk 0:02:57.9]} 5. Bd3 {[%clk 0:03:02.4]}
5... b6 {[%clk 0:02:57.3]} 6. f4 {[%clk 0:02:59.7]} 6... Ba6 {[%clk 0:02:52.3]}
7. Bxa6 {[%clk 0:02:59.3]} 7... Nxa6 {[%clk 0:02:51.8]} 8. Ngf3 {[%clk
0:03:00.2]} 8... Be7 {[%clk 0:02:44]} 9. O-O {[%clk 0:02:56.3]} 9... g6 {[%clk
0:02:44.1]} 10. Qe2 {[%clk 0:02:34.9]} 10... Nb4 {[%clk 0:02:28.1]} 11. c3
{[%clk 0:02:31.1]} 11... Nc6 {[%clk 0:02:27.5]} 12. g4 {[%clk 0:02:31.1]} 12...
h5 {[%clk 0:02:10]} 13. h3 {[%clk 0:02:28.4]} 13... hxg4 {[%clk 0:02:01.3]} 14.
hxg4 {[%clk 0:02:29.3]} 14... Nf8 {[%clk 0:01:32.7]} 15. b3 {[%clk 0:02:23.9]}
15... Qd7 {[%clk 0:01:30.1]} 16. Bb2 {[%clk 0:02:21.9]} 16... O-O-O {[%clk
0:01:29.6]} 17. a4 {[%clk 0:02:21.5]} 17... a5 {[%clk 0:01:00.8]} 18. b4 {[%clk
0:02:16.2]} 18... Kb7 {[%clk 0:00:55.2]} 19. Kg2 {[%clk 0:01:40.5]} 19... g5
{[%clk 0:00:54.4]} 20. b5 {[%clk 0:01:19.2]} 20... Nb8 {[%clk 0:00:44.7]} 21.
Qe3 {[%clk 0:00:49]} 21... gxf4 {[%clk 0:00:29.3]} 22. Qxf4 {[%clk 0:00:49.9]}
22... Ng6 {[%clk 0:00:28.4]} 23. Qxf7 {[%clk 0:00:45.5]} 23... Rdg8 {[%clk
0:00:25.5]} 24. Rh1 {[%clk 0:00:41.5]} 24... Nh4+ {[%clk 0:00:02.9]} 25. Rxh4
{[%clk 0:00:22.2]} 25... Bxh4 {[%clk 0:00:03.8]} 26. Qf4 {[%clk 0:00:14.2]}
26... Rf8 {[%clk 0:00:03.2]} 27. Qe3 {[%clk 0:00:12.7]} 27... Be7 {[%clk
0:00:02.9]} 28. Rh1 {[%clk 0:00:12.5]} 28... Rhg8 {[%clk 0:00:03.2]} 29. g5
{[%clk 0:00:11.8]} 29... Qd8 {[%clk 0:00:04.1]} 30. Rh5 {[%clk 0:00:11]} 30...
Rf5 {[%clk 0:00:04.1]} 31. Bc1 {[%clk 0:00:07.8]} 31... Nd7 {[%clk 0:00:04.1]}
32. Nf1 {[%clk 0:00:07.8]} 32... Nf8 {[%clk 0:00:04.4]} 33. Ng3 {[%clk
0:00:08.3]} 33... Ng6 {[%clk 0:00:05.3]} 34. Nxf5 {[%clk 0:00:08.6]} 34... exf5
{[%clk 0:00:05.2]} 35. Rh6 {[%clk 0:00:07.5]} 35... f4 {[%clk 0:00:05.2]} 36.
Qe2 {[%clk 0:00:05.5]} 36... Bxg5 {[%clk 0:00:05.8]} 37. Rh3 {[%clk 0:00:04.6]}
37... Be7 {[%clk 0:00:05.2]} 38. Kf1 {[%clk 0:00:04.8]} 38... Qe8 {[%clk
0:00:04.1]} 39. Rh2 {[%clk 0:00:05.1]} 39... Qf7 {[%clk 0:00:04.2]} 40. Rg2
{[%clk 0:00:06]} 40... Qe6 {[%clk 0:00:04.1]} 41. Ng5 {[%clk 0:00:06.1]} 41...
Bxg5 {[%clk 0:00:03.4]} 42. Rxg5 {[%clk 0:00:07]} 42... Nh4 {[%clk 0:00:01.2]}
43. Rxg8 {[%clk 0:00:06.1]} 43... Qxg8 {[%clk 0:00:02.1]} 44. Bxf4 {[%clk
0:00:06.5]} 44... Qg4 {[%clk 0:00:01.9]} 45. Qxg4 {[%clk 0:00:06.8]} 45... Ng6
{[%clk 0:00:02.5]} 46. Qxg6 {[%clk 0:00:07.2]} 1-0